fUST/lending_fUST_20260512
["ID","MTS","AMOUNT","RATE_DAILY","PERIOD"]
[422060477,1778538649000,-500.0,0.00010958,2]
[422060479,1778538649000,-500.0,0.00010958,2]
[422060492,1778538649000,-581.64,0.00010958,2]
[422060447,1778538649000,-1021.26,0.00010958,2]
[422060494,1778538649000,-528.07,0.00010958,2]
[422060464,1778538649000,-1363.83,0.00010958,2]
[422060433,1778538649000,-500.0,0.00010958,2]
[422060403,1778538649000,-500.0,0.00010958,2]
[422060431,1778538649000,-500.0,0.00010958,2]
[422060485,1778538649000,-500.0,0.00010958,2]
[422060377,1778538649000,-500.0,0.00010958,2]
[422060373,1778538649000,-500.0,0.00010958,2]
[422060375,1778538649000,-198.91635136,0.00010958,2]
[422060379,1778538649000,-500.0,0.00010958,2]
[422060391,1778538649000,-500.0,0.00010958,2]
[422060393,1778538649000,-229.0582,0.00010958,2]
[422060395,1778538649000,-500.0,0.00010958,2]
[422060397,1778538649000,-500.0,0.00010958,2]
[422060383,1778538649000,-500.0,0.00010958,2]
[422060385,1778538649000,-500.0,0.00010958,2]
[422060389,1778538649000,-500.0,0.00010958,2]
[422060387,1778538649000,-1526.31,0.00010958,2]
[422060429,1778538649000,-500.0,0.00010958,2]
[422060399,1778538649000,-500.0,0.00010958,2]
[422060406,1778538649000,-500.0,0.00010958,2]
[422060405,1778538649000,-554.49,0.00010958,2]
[422060408,1778538649000,-500.0,0.00010958,2]
[422060419,1778538649000,-500.0,0.00010958,2]
[422060410,1778538649000,-500.0,0.00010958,2]
[422060412,1778538649000,-500.0,0.00010958,2]
[422060414,1778538649000,-500.0,0.00010958,2]
[422060421,1778538649000,-500.0,0.00010958,2]
[422060425,1778538649000,-500.0,0.00010958,2]
[422060423,1778538649000,-500.0,0.00010958,2]
[422060427,1778538649000,-500.0,0.00010958,2]
[422060416,1778538649000,-500.0,0.00010958,2]
[422060418,1778538649000,-500.0,0.00010958,2]
[422060401,1778538649000,-500.0,0.00010958,2]
[422060481,1778538649000,-1085.36,0.00010958,2]
[422060381,1778538649000,-500.0,0.00010958,2]
[422060487,1778538649000,-486.89850194,0.00010958,2]
[422060539,1778538649000,-18158.39,0.00010958,2]
[422060555,1778538649000,-500.0,0.00010958,2]
[422060554,1778538649000,-3405.65,0.00010958,2]
[422060568,1778538649000,-500.0,0.00010958,2]
[422060559,1778538649000,-500.0,0.00010958,2]
[422060557,1778538649000,-500.0,0.00010958,2]
[422060571,1778538649000,-500.0,0.00010958,2]
[422060570,1778538649000,-500.0,0.00010958,2]
[422060575,1778538649000,-500.0,0.00010958,2]
[422060573,1778538649000,-500.0,0.00010958,2]
[422060562,1778538649000,-1377.03,0.00010958,2]
[422060564,1778538649000,-500.0,0.00010958,2]
[422060561,1778538649000,-500.0,0.00010958,2]
[422060552,1778538649000,-500.0,0.00010958,2]
[422060566,1778538649000,-500.0,0.00010958,2]
[422060580,1778538649000,-500.0,0.00010958,2]
[422060577,1778538649000,-500.0,0.00010958,2]
[422060594,1778538649000,-769.62,0.00010958,2]
[422060596,1778538649000,-500.0,0.00010958,2]
[422060598,1778538649000,-792.53,0.00010958,2]
[422060582,1778538649000,-500.0,0.00010958,2]
[422060586,1778538649000,-500.0,0.00010958,2]
[422060584,1778538649000,-500.0,0.00010958,2]
[422060588,1778538649000,-500.0,0.00010958,2]
[422060592,1778538649000,-3451.96,0.00010958,2]
[422060590,1778538649000,-949.89,0.00010958,2]
[422060607,1778538649000,-500.0,0.00010958,2]
[422060605,1778538649000,-1732.91,0.00010958,2]
[422060579,1778538649000,-647.32,0.00010958,2]
[422060535,1778538649000,-500.0,0.00010958,2]
[422060610,1778538649000,-1103.05609703,0.00010958,2]
[422060541,1778538649000,-500.0,0.00010958,2]
[422060537,1778538649000,-500.0,0.00010958,2]
[422060488,1778538649000,-500.0,0.00010958,2]
[422060499,1778538649000,-157.71955979,0.00010958,2]
[422060497,1778538649000,-500.0,0.00010958,2]
[422060495,1778538649000,-500.0,0.00010958,2]
[422060490,1778538649000,-2563.98,0.00010958,2]
[422060501,1778538649000,-2541.11,0.00010958,2]
[422060504,1778538649000,-500.0,0.00010958,2]
[422060503,1778538649000,-853.29,0.00010958,2]
[422060517,1778538649000,-500.0,0.00010958,2]
[422060519,1778538649000,-500.0,0.00010958,2]
[422060506,1778538649000,-500.0,0.00010958,2]
[422060521,1778538649000,-3644.34,0.00010958,2]
[422060510,1778538649000,-500.0,0.00010958,2]
[422060514,1778538649000,-500.0,0.00010958,2]
[422060483,1778538649000,-500.0,0.00010958,2]
[422060523,1778538649000,-585.69363593,0.00010958,2]
[422060548,1778538649000,-500.0,0.00010958,2]
[422060545,1778538649000,-500.0,0.00010958,2]
[422060512,1778538649000,-672.81,0.00010958,2]
[422060550,1778538649000,-500.0,0.00010958,2]
[422060546,1778538649000,-587.36,0.00010958,2]
[422060543,1778538649000,-500.0,0.00010958,2]
[422060533,1778538649000,-224.51091186,0.00010958,2]
[422060526,1778538649000,-500.0,0.00010958,2]
[422060528,1778538649000,-500.0,0.00010958,2]
[422060530,1778538649000,-1925.83,0.00010958,2]
[422060516,1778538649000,-500.0,0.00010958,2]
[422060524,1778538649000,-2716.72,0.00010958,2]
[422060508,1778538649000,-3947.2,0.00010958,2]
[422060532,1778538649000,-500.0,0.00010958,2]
[422061064,1778539832000,-207.1092193,9.364e-05,2]
[422061066,1778539832000,-97.26578793,9.364e-05,2]
[422061683,1778539841000,-69.12892171,9.873e-05,2]
[422061681,1778539841000,-151.0,9.364e-05,2]
[422061685,1778539841000,-258.94868729,9.873e-05,2]
[422061679,1778539841000,-428.81324617,9.364e-05,2]
[422061691,1778539841000,-300.0,9.889e-05,2]
[422061693,1778539841000,-1200.0,9.889e-05,2]
[422061689,1778539841000,-153.0,9.889e-05,2]
[422061687,1778539841000,-300.0,9.889e-05,2]
[422061696,1778539841000,-300.0,9.889e-05,2]
[422061762,1778539842000,-500.0,0.00010496,2]
[422061761,1778539842000,-500.0,0.00010496,2]
[422061764,1778539842000,-183.04178701,0.00010496,2]
[422061766,1778539842000,-344.78703349,0.00010496,2]
[422061770,1778539842000,-500.0,0.00010496,2]
[422061768,1778539842000,-500.0,0.00010496,2]
[422061757,1778539842000,-500.0,0.00010496,2]
[422061755,1778539842000,-161.621689,0.00010327,2]
[422061753,1778539842000,-160.0,0.00010327,2]
[422061781,1778539842000,-500.0,0.00010496,2]
[422061772,1778539842000,-500.0,0.00010496,2]
[422061774,1778539842000,-500.0,0.00010496,2]
[422061776,1778539842000,-500.0,0.00010496,2]
[422061787,1778539842000,-500.0,0.00010496,2]
[422061783,1778539842000,-500.0,0.00010496,2]
[422061799,1778539842000,-500.0,0.00010496,2]
[422061798,1778539842000,-445.9208337,0.00010496,2]
[422061794,1778539842000,-500.0,0.00010496,2]
[422061790,1778539842000,-214.7752677,0.00010496,2]
[422061789,1778539842000,-500.0,0.00010496,2]
[422061751,1778539842000,-160.0,0.00010327,2]
[422061759,1778539842000,-500.0,0.00010496,2]
[422061749,1778539842000,-600.0,0.00010197,2]
[422061722,1778539842000,-300.0,0.00010197,2]
[422061744,1778539842000,-300.0,0.00010197,2]
[422061792,1778539842000,-433.96194129,0.00010496,2]
[422061700,1778539842000,-1105.83155126,9.89e-05,2]
[422061698,1778539842000,-469.0566661,9.89e-05,2]
[422061702,1778539842000,-360.5428193,9.89e-05,2]
[422061705,1778539842000,-409.85229384,9.89e-05,2]
[422061709,1778539842000,-7497.40175094,9.89e-05,2]
[422061713,1778539842000,-5000.0,0.0001,2]
[422061719,1778539842000,-300.0,0.00010197,2]
[422061711,1778539842000,-1990.81549655,0.0001,2]
[422061721,1778539842000,-300.0,0.00010197,2]
[422061747,1778539842000,-300.0,0.00010197,2]
[422061715,1778539842000,-4271.09381704,0.0001,2]
[422061726,1778539842000,-300.0,0.00010197,2]
[422061724,1778539842000,-300.0,0.00010197,2]
[422061734,1778539842000,-300.0,0.00010197,2]
[422061742,1778539842000,-300.0,0.00010197,2]
[422061732,1778539842000,-300.0,0.00010197,2]
[422061730,1778539842000,-300.0,0.00010197,2]
[422061736,1778539842000,-300.0,0.00010197,2]
[422061740,1778539842000,-300.0,0.00010197,2]
[422061728,1778539842000,-300.0,0.00010197,2]
[422061738,1778539842000,-300.0,0.00010197,2]
[422061717,1778539842000,-324.4725051,0.00010047,2]
[422061707,1778539842000,-4221.5099949,9.89e-05,2]
[422061801,1778539842000,-500.0,0.00010496,2]
[422061785,1778539842000,-500.0,0.00010496,2]
[422061833,1778539842000,-500.0,0.00010496,2]
[422061853,1778539842000,-500.0,0.00010496,2]
[422061841,1778539842000,-500.0,0.00010496,2]
[422061857,1778539842000,-500.0,0.00010496,2]
[422061855,1778539842000,-500.0,0.00010496,2]
[422061859,1778539842000,-500.0,0.00010496,2]
[422061869,1778539842000,-500.0,0.00010496,2]
[422061870,1778539842000,-500.0,0.00010496,2]
[422061861,1778539842000,-500.0,0.00010496,2]
[422061863,1778539842000,-500.0,0.00010496,2]
[422061878,1778539842000,-500.0,0.00010496,2]
[422061867,1778539842000,-500.0,0.00010496,2]
[422061872,1778539842000,-500.0,0.00010496,2]
[422061874,1778539842000,-500.0,0.00010496,2]
[422061865,1778539842000,-500.0,0.00010496,2]
[422061876,1778539842000,-500.0,0.00010496,2]
[422061879,1778539842000,-528.12925091,0.00010496,2]
[422061884,1778539842000,-500.0,0.00010496,2]
[422061885,1778539842000,-500.0,0.00010496,2]
[422061887,1778539842000,-446952.11732058,0.00010497,2]
[422061803,1778539842000,-500.0,0.00010496,2]
[422061851,1778539842000,-500.0,0.00010496,2]
[422061839,1778539842000,-500.0,0.00010496,2]
[422061882,1778539842000,-500.0,0.00010496,2]
[422061849,1778539842000,-500.0,0.00010496,2]
[422061777,1778539842000,-500.0,0.00010496,2]
[422061779,1778539842000,-500.0,0.00010496,2]
[422061805,1778539842000,-500.0,0.00010496,2]
[422061796,1778539842000,-506.38811256,0.00010496,2]
[422061806,1778539842000,-500.0,0.00010496,2]
[422061810,1778539842000,-500.0,0.00010496,2]
[422061814,1778539842000,-500.0,0.00010496,2]
[422061812,1778539842000,-500.0,0.00010496,2]
[422061825,1778539842000,-500.0,0.00010496,2]
[422061823,1778539842000,-500.0,0.00010496,2]
[422061808,1778539842000,-500.0,0.00010496,2]
[422061827,1778539842000,-500.0,0.00010496,2]
[422061821,1778539842000,-500.0,0.00010496,2]
[422061835,1778539842000,-331.09228849,0.00010496,2]
[422061845,1778539842000,-500.0,0.00010496,2]
[422061831,1778539842000,-500.0,0.00010496,2]
[422061843,1778539842000,-500.0,0.00010496,2]
[422061837,1778539842000,-500.0,0.00010496,2]
[422061818,1778539842000,-500.0,0.00010496,2]
[422061819,1778539842000,-500.0,0.00010496,2]
[422061815,1778539842000,-470.6442646,0.00010496,2]
[422061829,1778539842000,-500.0,0.00010496,2]
[422061847,1778539842000,-500.0,0.00010496,2]
[422061915,1778539844000,-2964.69468935,0.00010497,2]
[422061913,1778539844000,-1782.89478354,0.00010497,2]
[422061912,1778539844000,-978.13732109,0.00010497,2]
[422061914,1778539844000,-622.06039237,0.00010497,2]
[422061911,1778539844000,-665.29141536,0.00010497,2]
[422061917,1778539847000,-6157.16058632,0.00010497,2]
[422061928,1778540463000,555.0,0.00012,120]
[422061929,1778540492000,555.0,0.00012,120]
[422061932,1778540515000,333.0,0.00012,120]
[422061949,1778541031000,-1274.20149484,7.6e-05,2]
[422061996,1778541037000,-5266.3624233,7.6e-05,2]
[422062084,1778541038000,-500.0,0.00010196,2]
[422062057,1778541038000,-151.0,0.0001,2]
[422062060,1778541038000,-151.0,0.0001,2]
[422062055,1778541038000,-151.0,0.0001,2]
[422062061,1778541038000,-151.0,0.0001,2]
[422062058,1778541038000,-151.0,0.0001,2]
[422062059,1778541038000,-151.0,0.0001,2]
[422062062,1778541038000,-151.0,0.0001,2]
[422062063,1778541038000,-151.0,0.0001,2]
[422062065,1778541038000,-5000.0,0.0001,2]
[422062064,1778541038000,-154.01060343,0.0001,2]
[422062066,1778541038000,-160.0,0.00010035,2]
[422061998,1778541038000,-337.31593664,7.9e-05,2]
[422062067,1778541038000,-161.621689,0.00010035,2]
[422062070,1778541038000,-154.56,0.000101,2]
[422062074,1778541038000,-500.0,0.00010196,2]
[422062072,1778541038000,-156.032867,0.00010188,2]
[422062075,1778541038000,-500.0,0.00010196,2]
[422062071,1778541038000,-6506.27411848,0.00010109,2]
[422062073,1778541038000,-500.0,0.00010196,2]
[422062077,1778541038000,-500.0,0.00010196,2]
[422062076,1778541038000,-500.0,0.00010196,2]
[422062078,1778541038000,-500.0,0.00010196,2]
[422062080,1778541038000,-314.18318527,0.00010196,2]
[422062079,1778541038000,-257.8148444,0.00010196,2]
[422062082,1778541038000,-398.65127754,0.00010196,2]
[422062081,1778541038000,-500.0,0.00010196,2]
[422062056,1778541038000,-151.0,0.0001,2]
[422062069,1778541038000,-172.66992877,0.00010097,2]
[422062054,1778541038000,-151.0,0.0001,2]
[422062001,1778541038000,-154.56,8.6e-05,2]
[422062051,1778541038000,-151.0,0.0001,2]
[422062000,1778541038000,-154.56,8.2e-05,2]
[422062003,1778541038000,-154.56,9e-05,2]
[422062005,1778541038000,-212.434621,9.225e-05,2]
[422062007,1778541038000,-154.56,9.3e-05,2]
[422062009,1778541038000,-154.56,9.7e-05,2]
[422062011,1778541038000,-300.0,9.889e-05,2]
[422062019,1778541038000,-1200.0,9.889e-05,2]
[422062013,1778541038000,-300.0,9.889e-05,2]
[422062015,1778541038000,-300.0,9.889e-05,2]
[422062017,1778541038000,-300.0,9.889e-05,2]
[422062020,1778541038000,-427.8559167,9.89e-05,2]
[422062031,1778541038000,-10228.16695051,9.998e-05,2]
[422062022,1778541038000,-1711.42366679,9.89e-05,2]
[422062053,1778541038000,-151.0,0.0001,2]
[422062024,1778541038000,-3846.85254704,9.89e-05,2]
[422062026,1778541038000,-398.03280524,9.9e-05,2]
[422062029,1778541038000,-999.0,9.998e-05,2]
[422062033,1778541038000,-555.0,9.999e-05,2]
[422062035,1778541038000,-999.0,0.0001,2]
[422062037,1778541038000,-23180.83678724,0.0001,2]
[422062039,1778541038000,-180.07759153,0.0001,2]
[422062044,1778541038000,-151.0,0.0001,2]
[422062046,1778541038000,-151.0,0.0001,2]
[422062040,1778541038000,-151.0,0.0001,2]
[422062042,1778541038000,-151.0,0.0001,2]
[422062048,1778541038000,-151.0,0.0001,2]
[422062049,1778541038000,-151.0,0.0001,2]
[422062052,1778541038000,-151.0,0.0001,2]
[422062028,1778541038000,-300.0,9.997e-05,2]
[422062083,1778541038000,-500.0,0.00010196,2]
[422062068,1778541038000,-160.0,0.00010035,2]
[422062087,1778541038000,-469.69047563,0.00010196,2]
[422062122,1778541038000,-300.0,0.00010706,2]
[422062121,1778541038000,-300.0,0.00010706,2]
[422062123,1778541038000,-300.0,0.00010706,2]
[422062124,1778541038000,-300.0,0.00010706,2]
[422062125,1778541038000,-300.0,0.00010706,2]
[422062127,1778541038000,-300.0,0.00010706,2]
[422062126,1778541038000,-300.0,0.00010706,2]
[422062129,1778541038000,-300.0,0.00010706,2]
[422062128,1778541038000,-300.0,0.00010706,2]
[422062130,1778541038000,-300.0,0.00010706,2]
[422062132,1778541038000,-420.0,0.00010877,2]
[422062131,1778541038000,-600.0,0.00010706,2]
[422062133,1778541038000,-154.56,0.000109,2]
[422062134,1778541038000,-1890.4135,0.00010958,2]
[422062135,1778541038000,-433.27331211,0.00010958,2]
[422062136,1778541038000,-1733.09324846,0.00010958,2]
[422062138,1778541038000,-6925.44062084,0.00010958,2]
[422062137,1778541038000,-3899.45980903,0.00010958,2]
[422062139,1778541038000,-150.8454656,0.00010958,2]
[422062142,1778541038000,-500.0,0.00010958,2]
[422062140,1778541038000,-500.0,0.00010958,2]
[422062141,1778541038000,-593.88,0.00010958,2]
[422062144,1778541038000,-500.0,0.00010958,2]
[422062148,1778541038000,-500.0,0.00010958,2]
[422062143,1778541038000,-500.0,0.00010958,2]
[422062145,1778541038000,-500.0,0.00010958,2]
[422062147,1778541038000,-500.0,0.00010958,2]
[422062146,1778541038000,-500.0,0.00010958,2]
[422062088,1778541038000,-500.0,0.00010196,2]
[422062119,1778541038000,-300.0,0.00010706,2]
[422062120,1778541038000,-300.0,0.00010706,2]
[422062085,1778541038000,-500.0,0.00010196,2]
[422062118,1778541038000,-300.0,0.00010706,2]
[422062089,1778541038000,-500.0,0.00010196,2]
[422062086,1778541038000,-500.0,0.00010196,2]
[422062090,1778541038000,-500.0,0.00010196,2]
[422062092,1778541038000,-500.0,0.00010196,2]
[422062094,1778541038000,-500.0,0.00010196,2]
[422062091,1778541038000,-500.0,0.00010196,2]
[422062093,1778541038000,-500.0,0.00010196,2]
[422062095,1778541038000,-500.0,0.00010196,2]
[422062096,1778541038000,-500.0,0.00010196,2]
[422062098,1778541038000,-500.0,0.00010196,2]
[422062100,1778541038000,-500.0,0.00010196,2]
[422062097,1778541038000,-450.0,0.00010196,2]
[422062101,1778541038000,-500.0,0.00010196,2]
[422062102,1778541038000,-500.0,0.00010196,2]
[422062117,1778541038000,-300.0,0.00010706,2]
[422062103,1778541038000,-201181.59808145,0.00010197,2]
[422062116,1778541038000,-300.0,0.00010706,2]
[422062115,1778541038000,-2201.0,0.00010683,2]
[422062114,1778541038000,-1412.0,0.00010683,2]
[422062113,1778541038000,-601.86756736,0.00010568,2]
[422062099,1778541038000,-500.0,0.00010196,2]
[422062111,1778541038000,-154.56,0.000105,2]
[422062112,1778541038000,-537.6845,0.00010513,2]
[422062109,1778541038000,-1591.82298203,0.0001041,2]
[422062108,1778541038000,-397.95574551,0.0001041,2]
[422062106,1778541038000,-360.0,0.00010222,2]
[422062105,1778541038000,-151.5,0.00010209,2]
[422062107,1778541038000,-243.71,0.00010222,2]
[422062104,1778541038000,-2208590.67907912,0.00010197,2]
[422062110,1778541038000,-3578.02010786,0.0001041,2]
[422062193,1778541039000,-500.0,0.00010958,2]
[422062191,1778541039000,-1928.84,0.00010958,2]
[422062188,1778541039000,-500.0,0.00010958,2]
[422062190,1778541039000,-680.15,0.00010958,2]
[422062189,1778541039000,-500.0,0.00010958,2]
[422062182,1778541039000,-500.0,0.00010958,2]
[422062184,1778541039000,-500.0,0.00010958,2]
[422062187,1778541039000,-500.0,0.00010958,2]
[422062181,1778541039000,-500.0,0.00010958,2]
[422062183,1778541039000,-500.0,0.00010958,2]
[422062186,1778541039000,-697.6,0.00010958,2]
[422062192,1778541039000,-500.0,0.00010958,2]
[422062185,1778541039000,-500.0,0.00010958,2]
[422062195,1778541039000,-899.6,0.00010958,2]
[422062202,1778541039000,-497.15285951,0.00010958,2]
[422062199,1778541039000,-500.0,0.00010958,2]
[422062198,1778541039000,-500.0,0.00010958,2]
[422062197,1778541039000,-500.0,0.00010958,2]
[422062200,1778541039000,-500.0,0.00010958,2]
[422062201,1778541039000,-500.0,0.00010958,2]
[422062203,1778541039000,-500.0,0.00010958,2]
[422062204,1778541039000,-373.07811599,0.00010958,2]
[422062205,1778541039000,-500.0,0.00010958,2]
[422062207,1778541039000,-500.0,0.00010958,2]
[422062213,1778541039000,-569.02,0.00010958,2]
[422062206,1778541039000,-500.0,0.00010958,2]
[422062210,1778541039000,-500.0,0.00010958,2]
[422062180,1778541039000,-500.0,0.00010958,2]
[422062196,1778541039000,-286.16153657,0.00010958,2]
[422062179,1778541039000,-536.42,0.00010958,2]
[422062164,1778541039000,-500.0,0.00010958,2]
[422062177,1778541039000,-500.0,0.00010958,2]
[422062149,1778541039000,-500.0,0.00010958,2]
[422062150,1778541039000,-500.0,0.00010958,2]
[422062151,1778541039000,-500.0,0.00010958,2]
[422062152,1778541039000,-500.0,0.00010958,2]
[422062153,1778541039000,-500.0,0.00010958,2]
[422062154,1778541039000,-500.0,0.00010958,2]
[422062156,1778541039000,-3557.39608466,0.00010958,2]
[422062155,1778541039000,-890.23926043,0.00010958,2]
[422062159,1778541039000,-500.0,0.00010958,2]
[422062158,1778541039000,-607.34,0.00010958,2]
[422062161,1778541039000,-500.0,0.00010958,2]
[422062157,1778541039000,-500.0,0.00010958,2]
[422062160,1778541039000,-500.0,0.00010958,2]
[422062175,1778541039000,-500.0,0.00010958,2]
[422062162,1778541039000,-500.0,0.00010958,2]
[422062214,1778541039000,-1880.89,0.00010958,2]
[422062167,1778541039000,-500.0,0.00010958,2]
[422062165,1778541039000,-500.0,0.00010958,2]
[422062166,1778541039000,-631.07,0.00010958,2]
[422062169,1778541039000,-500.0,0.00010958,2]
[422062168,1778541039000,-500.0,0.00010958,2]
[422062170,1778541039000,-500.0,0.00010958,2]
[422062172,1778541039000,-500.0,0.00010958,2]
[422062173,1778541039000,-500.0,0.00010958,2]
[422062171,1778541039000,-612.28,0.00010958,2]
[422062174,1778541039000,-500.0,0.00010958,2]
[422062176,1778541039000,-500.0,0.00010958,2]
[422062178,1778541039000,-500.0,0.00010958,2]
[422062163,1778541039000,-500.0,0.00010958,2]
[422062209,1778541039000,-500.0,0.00010958,2]
[422062194,1778541039000,-500.0,0.00010958,2]
[422062212,1778541039000,-500.0,0.00010958,2]
[422062250,1778541039000,-500.0,0.00010958,2]
[422062251,1778541039000,-500.0,0.00010958,2]
[422062249,1778541039000,-501.15906716,0.00010958,2]
[422062248,1778541039000,-500.0,0.00010958,2]
[422062252,1778541039000,-500.0,0.00010958,2]
[422062255,1778541039000,-500.0,0.00010958,2]
[422062254,1778541039000,-500.0,0.00010958,2]
[422062253,1778541039000,-500.0,0.00010958,2]
[422062256,1778541039000,-500.0,0.00010958,2]
[422062257,1778541039000,-500.0,0.00010958,2]
[422062259,1778541039000,-500.0,0.00010958,2]
[422062260,1778541039000,-500.0,0.00010958,2]
[422062261,1778541039000,-500.0,0.00010958,2]
[422062264,1778541039000,-500.0,0.00010958,2]
[422062258,1778541039000,-1794.6,0.00010958,2]
[422062265,1778541039000,-500.0,0.00010958,2]
[422062262,1778541039000,-500.0,0.00010958,2]
[422062263,1778541039000,-500.0,0.00010958,2]
[422062266,1778541039000,-500.0,0.00010958,2]
[422062268,1778541039000,-500.0,0.00010958,2]
[422062267,1778541039000,-500.0,0.00010958,2]
[422062270,1778541039000,-500.0,0.00010958,2]
[422062269,1778541039000,-500.0,0.00010958,2]
[422062271,1778541039000,-500.0,0.00010958,2]
[422062273,1778541039000,-660.64,0.00010958,2]
[422062272,1778541039000,-500.0,0.00010958,2]
[422062274,1778541039000,-500.0,0.00010958,2]
[422062276,1778541039000,-500.0,0.00010958,2]
[422062211,1778541039000,-500.0,0.00010958,2]
[422062246,1778541039000,-1872.9,0.00010958,2]
[422062247,1778541039000,-500.0,0.00010958,2]
[422062275,1778541039000,-500.0,0.00010958,2]
[422062244,1778541039000,-580.2,0.00010958,2]
[422062245,1778541039000,-951.15,0.00010958,2]
[422062216,1778541039000,-500.0,0.00010958,2]
[422062219,1778541039000,-500.0,0.00010958,2]
[422062217,1778541039000,-500.0,0.00010958,2]
[422062218,1778541039000,-500.0,0.00010958,2]
[422062221,1778541039000,-500.0,0.00010958,2]
[422062220,1778541039000,-500.0,0.00010958,2]
[422062223,1778541039000,-592.1,0.00010958,2]
[422062222,1778541039000,-500.0,0.00010958,2]
[422062224,1778541039000,-734.06,0.00010958,2]
[422062227,1778541039000,-500.0,0.00010958,2]
[422062226,1778541039000,-500.0,0.00010958,2]
[422062225,1778541039000,-500.0,0.00010958,2]
[422062229,1778541039000,-500.0,0.00010958,2]
[422062228,1778541039000,-500.0,0.00010958,2]
[422062215,1778541039000,-500.0,0.00010958,2]
[422062232,1778541039000,-500.0,0.00010958,2]
[422062243,1778541039000,-500.0,0.00010958,2]
[422062242,1778541039000,-500.0,0.00010958,2]
[422062241,1778541039000,-500.0,0.00010958,2]
[422062238,1778541039000,-655.37,0.00010958,2]
[422062239,1778541039000,-500.0,0.00010958,2]
[422062237,1778541039000,-500.0,0.00010958,2]
[422062240,1778541039000,-665.21,0.00010958,2]
[422062235,1778541039000,-500.0,0.00010958,2]
[422062236,1778541039000,-500.0,0.00010958,2]
[422062234,1778541039000,-500.0,0.00010958,2]
[422062231,1778541039000,-500.0,0.00010958,2]
[422062230,1778541039000,-500.0,0.00010958,2]
[422062233,1778541039000,-500.0,0.00010958,2]
[422062317,1778541040000,-500.0,0.00010958,2]
[422062322,1778541040000,-3970.84,0.00010958,2]
[422062319,1778541040000,-500.0,0.00010958,2]
[422062320,1778541040000,-500.0,0.00010958,2]
[422062318,1778541040000,-500.0,0.00010958,2]
[422062311,1778541040000,-4433.29,0.00010958,2]
[422062316,1778541040000,-500.0,0.00010958,2]
[422062313,1778541040000,-500.0,0.00010958,2]
[422062314,1778541040000,-500.0,0.00010958,2]
[422062312,1778541040000,-500.0,0.00010958,2]
[422062310,1778541040000,-500.0,0.00010958,2]
[422062315,1778541040000,-500.0,0.00010958,2]
[422062321,1778541040000,-500.0,0.00010958,2]
[422062331,1778541040000,-845.75,0.00010958,2]
[422062325,1778541040000,-619.43805944,0.00010958,2]
[422062323,1778541040000,-500.0,0.00010958,2]
[422062326,1778541040000,-500.0,0.00010958,2]
[422062328,1778541040000,-500.0,0.00010958,2]
[422062327,1778541040000,-500.0,0.00010958,2]
[422062337,1778541040000,-500.0,0.00010958,2]
[422062329,1778541040000,-1114.66,0.00010958,2]